bitfinex/quotes_SOLUSD_20250531
["timestamp","ask_amount","ask_price","bid_price","bid_amount"]
[1748692300826,26.52240298,153.15,153.13,10.2]
[1748692301205,26.52240298,153.15,153.12,39.7]
[1748692301407,18.64964886,153.15,153.12,39.7]
[1748692301823,18.64964886,153.15,153.12,46.23074886]
[1748692302024,7.87275412,153.18,153.12,54.10350298]
[1748692302344,18.64964886,153.19,153.12,54.10350298]
[1748692302345,7.87275412,153.17,153.12,54.10350298]
[1748692302839,7.87275412,153.17,153.12,46.23074886]
[1748692303507,7.87275412,153.17,153.12,54.10350298]
[1748692304922,7.87275412,153.17,153.12,46.23074886]
[1748692309333,18.64964886,153.17,153.12,54.10350298]
[1748692310756,7.87275412,153.18,153.13,7.87275412]
[1748692310944,1.5012,153.2,153.14,7.87275412]
[1748692310945,18.64964886,153.19,153.14,7.87275412]
[1748692311141,18.64964886,153.19,153.15,6.52954619]
[1748692311636,7.87275412,153.2,153.16,39.7]
[1748692311868,1.649,153.24,153.16,47.57275412]
[1748692311869,7.87275412,153.21,153.16,47.57275412]
[1748692312564,7.87275412,153.21,153.16,73.57275412]
[1748692313295,7.87275412,153.21,153.17,6.5286936]
[1748692318454,7.87275412,153.2,153.17,6.5286936]
[1748692319149,7.87275412,153.2,153.16,72.22894222]
[1748692321176,18.64964886,153.19,153.16,26.0]
[1748692321381,18.64964886,153.19,153.15,39.7]
[1748692321382,7.87275412,153.18,153.15,39.7]
[1748692321577,1.6269,153.18,153.14,7.87275412]
[1748692321779,1.6269,153.18,152.95,32.35142042]
[1748692321780,18.64964886,153.06,152.97,12.6514312]
[1748692322082,26.0,153.07,152.97,12.6514312]
[1748692322083,7.87275412,153.05,152.99,7.87275412]
[1748692322282,18.64964886,153.04,152.99,47.81275412]
[1748692322479,7.87275412,153.03,152.99,39.94]
[1748692323073,7.87275412,153.02,152.99,39.94]
[1748692323915,12.3315632,153.02,152.99,39.94]
[1748692324205,12.3315632,153.03,152.99,39.94]
[1748692324611,18.64964886,153.04,152.99,58.8077934]
[1748692325392,12.3315632,153.03,152.99,46.4762302]
[1748692325719,12.3315632,153.02,152.99,39.94]
[1748692326678,18.64964886,153.02,152.97,36.2]
[1748692326892,30.98121206,153.02,152.97,95.02873251]
[1748692328016,12.3315632,153.03,152.98,12.3315632]
[1748692328819,12.3315632,153.02,152.97,95.02873251]
[1748692329823,18.64964886,153.06,152.97,82.69716931]
[1748692329824,12.3315632,153.01,152.97,82.69716931]
[1748692329997,12.3315632,152.99,152.97,36.2]
[1748692331700,12.3315632,152.98,152.97,36.2]
[1748692333119,12.3315632,152.99,152.97,36.2]
[1748692333293,12.3315632,152.98,152.97,10.2]
[1748692334529,12.3315632,152.99,152.97,10.2]
[1748692335420,12.3315632,153.0,152.97,10.2]
[1748692335822,12.3315632,153.0,152.97,16.73722952]
[1748692337533,12.3315632,153.0,152.97,16.39702952]
[1748692338342,12.3315632,153.01,152.97,16.39702952]
[1748692340027,12.3315632,153.04,152.98,38.3315632]
[1748692340917,12.3315632,153.04,152.99,18.86793812]
[1748692341225,12.3315632,153.04,153.0,39.96]
[1748692341832,12.3315632,153.03,153.0,36.8982]
[1748692343215,12.3315632,153.03,153.01,6.53552055]
[1748692343420,12.3315632,153.03,153.01,6.19241458]
[1748692344445,12.3315632,153.02,153.0,43.43401314]
[1748692345540,12.3315632,153.03,153.0,43.43401314]
[1748692350044,12.3315632,153.04,153.0,43.43401314]
[1748692350281,12.3315632,153.03,153.0,43.43401314]
[1748692352337,12.3315632,153.01,153.0,39.9]
[1748692353066,12.3315632,153.01,152.98,72.43671586]
[1748692353364,12.3315632,153.01,152.98,32.53671586]
[1748692353574,12.3315632,153.01,152.98,72.43671586]
[1748692356154,12.3315632,153.01,152.98,32.53671586]
[1748692356369,12.3315632,153.01,152.98,72.43671586]
[1748692356957,18.64964886,153.02,152.98,72.43671586]
[1748692357168,12.3315632,153.01,152.98,72.43671586]
[1748692357471,12.3315632,153.03,152.98,84.76827906]
[1748692358273,12.3315632,153.02,152.98,72.43671586]
[1748692362370,12.3315632,153.01,152.98,72.43671586]
[1748692363442,12.3315632,153.02,152.98,72.43671586]
[1748692363644,30.98121206,153.03,152.98,72.43671586]
[1748692364064,12.3315632,153.02,152.98,72.43671586]
[1748692365370,12.3315632,153.03,152.98,72.43671586]
[1748692368371,12.3315632,153.02,152.98,72.43671586]
[1748692368789,12.3315632,153.02,152.99,46.39604752]
[1748692369892,30.98121206,153.03,152.99,46.39604752]
[1748692371593,12.3315632,153.03,152.99,46.39604752]
[1748692375190,12.3315632,153.02,152.99,46.39604752]
[1748692381919,7.89199152,153.02,152.99,46.39604752]
[1748692385010,7.89199152,153.03,152.99,46.39604752]
[1748692385606,7.89199152,153.02,152.99,46.39604752]
[1748692386119,7.89199152,153.01,152.99,46.39604752]
[1748692386309,7.89199152,153.02,152.99,46.39604752]
[1748692386508,64.602124,153.07,153.0,7.89199152]
[1748692386692,7.89199152,153.06,153.01,7.89199152]
[1748692386907,7.89199152,153.06,153.02,39.8]
[1748692388107,18.64964886,153.08,153.03,6.5346664]
[1748692388108,7.89199152,153.07,153.03,6.5346664]
[1748692388725,26.54164038,153.08,153.03,6.5346664]
[1748692388923,26.54164038,153.08,153.03,30.76332393]
[1748692389939,12.32403204,153.07,153.03,6.5346664]
[1748692392832,12.32403204,153.07,153.03,22.87133241]
[1748692395535,18.64964886,153.11,153.05,12.32403204]
[1748692395740,146.9,153.14,153.06,52.10403204]
[1748692396042,12.32403204,153.12,153.07,12.32403204]
[1748692397146,12.32403204,153.12,153.08,6.532532]
[1748692398743,12.32403204,153.11,153.08,6.532532]
[1748692399319,12.32403204,153.11,153.07,6.53295877]
[1748692403133,12.32403204,153.12,153.07,18.85699081]
[1748692403334,12.32403204,153.12,153.07,35.18938775]
[1748692407758,12.32403204,153.13,153.08,12.32403204]
[1748692408775,12.32403204,153.13,153.09,6.53210529]
[1748692410660,12.32403204,153.12,153.09,6.53210529]
[1748692412077,7.88155206,153.12,153.09,6.53210529]
[1748692412387,7.88155206,153.12,153.08,6.532532]
[1748692416163,26.53120092,153.14,153.08,30.74541408]
[1748692418289,26.53120092,153.14,153.1,6.53167864]
[1748692418973,1.5466,153.15,153.11,47.60155206]
[1748692418974,18.64964886,153.15,153.11,47.60155206]
[1748692419363,7.00402522,153.18,153.11,47.60155206]
[1748692419564,18.64964886,153.2,153.14,7.88155206]
[1748692419776,18.64964886,153.2,153.15,7.88155206]
[1748692419777,7.88155206,153.2,153.15,7.88155206]
[1748692419978,7.88155206,153.2,153.16,39.72]
[1748692420296,7.88155206,153.18,153.16,39.72]
[1748692421618,7.88155206,153.18,153.16,46.24911199]
[1748692421989,12.30531839,153.18,153.16,46.24911199]
[1748692423819,12.30531839,153.18,153.16,39.72]
[1748692425192,12.30531839,153.17,153.14,10.24]
[1748692425512,12.30531839,153.15,153.14,10.24]
[1748692432129,25.17852071,153.17,153.14,10.24]
[1748692432317,12.30531839,153.15,153.14,10.24]
[1748692434023,18.64964886,153.14,153.11,39.72]
[1748692434318,12.30531839,153.12,153.11,39.72]
[1748692434702,12.30531839,153.12,153.1,46.25159053]
[1748692435313,12.30531839,153.13,153.1,46.25159053]
[1748692435826,12.30531839,153.13,153.1,6.53159053]
[1748692436037,12.30531839,153.13,153.1,46.25159053]
[1748692437121,12.30531839,153.13,153.1,6.53159053]
[1748692437317,12.30531839,153.13,153.1,46.25159053]
[1748692439027,12.30531839,153.14,153.1,46.25159053]
[1748692439218,12.30531839,153.14,153.1,6.53159053]
[1748692439472,25.1789348,153.16,153.11,46.25116367]
[1748692439608,12.30531839,153.14,153.11,46.25116367]
[1748692440729,12.30531839,153.14,153.11,39.72]
[1748692442229,12.30531839,153.13,153.11,39.72]
[1748692444106,7.88167249,153.13,153.11,39.72]
[1748692444422,26.53132135,153.12,153.09,36.2]
[1748692444624,26.53132135,153.12,153.09,82.45207133]
[1748692445318,26.53132135,153.12,153.09,82.45209704]
[1748692445839,26.53132135,153.12,153.09,75.92]
[1748692446044,30.96656909,153.12,153.09,75.92]
[1748692447030,30.96656909,153.12,153.09,82.45197017]
[1748692447326,12.31692023,153.13,153.09,82.45197017]
[1748692447530,12.31692023,153.13,153.09,42.73197017]
[1748692447735,12.31692023,153.13,153.1,39.72]
[1748692448040,12.31692023,153.13,153.1,46.25134413]
[1748692448943,12.31692023,153.14,153.1,46.25134413]
[1748692449251,30.96656909,153.15,153.1,46.25134413]
[1748692449428,12.31692023,153.14,153.1,46.25134413]
[1748692450254,12.31692023,153.13,153.1,46.25134413]
[1748692450851,12.31692023,153.14,153.1,46.25134413]
[1748692453514,12.31692023,153.15,153.1,74.89746096]
[1748692453716,18.64964886,153.16,153.11,12.31692023]
[1748692453938,12.31692023,153.16,153.11,12.31692023]
[1748692454922,12.31692023,153.15,153.1,74.89746096]
[1748692460631,10.81692023,153.15,153.1,74.89746096]
[1748692462227,12.31692023,153.16,153.12,6.53082549]
[1748692463074,12.31692023,153.18,153.13,12.31692023]
[1748692463224,12.31692023,153.18,153.14,39.72]
[1748692463927,30.96656909,153.19,153.14,52.03692023]
[1748692464474,30.96656909,153.19,153.15,16.72954619]
[1748692466654,12.31692023,153.18,153.15,16.72954619]
[1748692468056,7.87546708,153.18,153.15,16.72954619]
[1748692468555,26.52511594,153.19,153.15,16.72954619]
[1748692472275,7.87546708,153.18,153.15,16.72954619]
[1748692472637,7.87546708,153.18,153.15,56.42954619]
[1748692473455,26.52511594,153.19,153.15,56.42954619]
[1748692476040,7.87546708,153.18,153.15,56.42954619]
[1748692480046,7.87546708,153.16,153.11,16.73110582]
[1748692480247,7.87546708,153.13,153.12,39.7]
[1748692480657,7.87546708,153.13,153.11,10.2]
[1748692481255,18.64964886,153.12,153.11,10.2]
[1748692481455,7.87546708,153.12,153.11,10.2]
[1748692481760,7.87546708,153.12,153.09,39.7]
[1748692482071,12.3182403,153.11,153.09,39.7]
[1748692484765,12.3182403,153.12,153.09,39.7]
[1748692485061,12.3182403,153.12,153.08,6.53250597]
[1748692485267,12.3182403,153.12,153.09,39.7]
[1748692485947,12.3182403,153.14,153.09,52.0182403]
[1748692486276,30.96788916,153.15,153.09,52.0182403]
[1748692486659,30.96788916,153.15,153.1,6.53167864]
[1748692487547,12.3182403,153.14,153.1,6.53167864]
[1748692487874,12.3182403,153.13,153.1,6.53167864]
[1748692497072,12.3182403,153.13,153.09,46.23192826]
[1748692497985,12.3182403,153.13,153.09,6.53192826]
[1748692498180,12.3182403,153.13,153.1,39.7]
[1748692498485,12.3182403,153.13,153.1,46.23159634]
[1748692501081,30.96788916,153.15,153.1,46.23159634]
[1748692501286,30.96788916,153.15,153.1,58.54983664]
[1748692502402,12.3182403,153.14,153.1,46.23159634]
[1748692502974,12.3182403,153.14,153.11,39.7]
[1748692503174,18.64964886,153.15,153.11,39.7]
[1748692503492,12.3182403,153.14,153.11,39.7]
[1748692503859,30.96788916,153.15,153.11,46.23088789]
[1748692507983,26.52980556,153.15,153.11,46.23088789]
[1748692511586,18.64964886,153.16,153.11,46.23088789]
[1748692511795,18.64964886,153.14,153.11,46.23088789]
[1748692515796,25.17834246,153.17,153.11,46.23088789]
[1748692515998,7.8801567,153.15,153.11,46.23088789]
[1748692516180,18.64964886,153.14,153.11,46.23088789]
[1748692518503,3.92384228,153.18,153.11,62.55901799]
[1748692518703,7.8801567,153.2,153.15,7.8801567]
[1748692519004,7.8801567,153.2,153.16,39.7]
[1748692519199,18.64964886,153.21,153.16,39.7]
[1748692519200,18.64964886,153.18,153.16,39.7]
[1748692519784,18.64964886,153.18,153.16,46.2290935]
[1748692520409,18.64964886,153.19,153.16,46.2290935]
[1748692521000,12.30578271,153.2,153.16,46.2290935]
[1748692521201,18.64964886,153.2,153.16,58.53487621]
[1748692521503,18.64964886,153.2,153.16,68.73487621]
[1748692522602,12.30578271,153.22,153.17,12.30578271]
[1748692522909,18.64964886,153.21,153.17,12.30578271]
[1748692523103,6.1815,153.25,153.16,72.75189318]
[1748692523104,12.30578271,153.25,153.2,12.30578271]
[1748692523404,18.64964886,153.24,153.21,39.7]
[1748692524682,18.64964886,153.24,153.22,6.52656311]
[1748692526697,30.95543157,153.26,153.22,6.52656311]
[1748692531610,18.64964886,153.27,153.22,18.83234582]
[1748692531812,30.95543157,153.27,153.22,18.83234582]
[1748692532409,12.30578271,153.26,153.22,6.52656311]
[1748692532790,12.30578271,153.25,153.22,6.52656311]
[1748692533119,12.30578271,153.25,153.22,46.20656311]
[1748692533797,12.30578271,153.26,153.22,46.20656311]
[1748692534696,12.30578271,153.27,153.22,58.51234582]
[1748692534914,30.95543157,153.28,153.23,12.30578271]
[1748692536136,30.95543157,153.28,153.22,46.20656311]
[1748692536137,18.64964886,153.28,153.24,12.30578271]
[1748692536334,18.64964886,153.28,153.25,6.52528548]
[1748692538202,30.95543157,153.28,153.25,6.52528548]
[1748692538601,30.95543157,153.28,153.24,18.83139345]
[1748692538797,18.64964886,153.28,153.24,18.83139345]
[1748692541025,7.16478334,153.29,153.25,12.30578271]
[1748692541224,18.64964886,153.29,153.26,51.98578271]
[1748692541423,18.64964886,153.3,153.27,12.30578271]
[1748692542120,12.30578271,153.3,153.26,51.98578271]
[1748692542709,18.64964886,153.29,153.26,58.51058302]
[1748692543825,18.64964886,153.29,153.26,39.68]
[1748692544027,30.95543157,153.29,153.26,39.68]
[1748692545037,30.95543157,153.29,153.26,46.20485301]
[1748692546956,18.64964886,153.29,153.26,58.51063572]
[1748692547263,12.30578271,153.31,153.26,58.51063572]
[1748692551951,18.64964886,153.3,153.26,58.51063572]
[1748692553447,18.64964886,153.3,153.26,6.52485301]
[1748692553653,18.64964886,153.3,153.27,39.66]
[1748692555165,12.30578271,153.29,153.24,6.52552538]
[1748692555363,18.64964886,153.27,153.24,46.18552538]
[1748692555944,12.30578271,153.27,153.2,6.2757]
[1748692556150,18.64964886,153.22,153.18,18.8340501]
[1748692556359,30.95543157,153.22,153.18,72.18826739]
[1748692556570,30.95543157,153.22,153.18,46.18826739]
[1748692557670,18.64964886,153.22,153.18,58.4940501]
[1748692558353,18.64964886,153.22,153.19,12.30578271]
[1748692558553,18.64964886,153.22,153.19,18.83334176]
[1748692559289,18.64964886,153.22,153.19,6.52755905]
[1748692560760,18.64964886,153.22,153.18,51.96578271]
[1748692560957,12.30578271,153.21,153.17,10.18]
[1748692561173,18.64964886,153.19,153.17,16.70867116]
[1748692561682,6.52676537,153.22,153.17,16.70867116]
[1748692561683,12.30578271,153.22,153.17,29.01445387]
[1748692562477,18.64964886,153.2,153.17,16.70867116]
[1748692563272,18.64964886,153.21,153.17,29.01445387]
[1748692563480,12.30578271,153.2,153.16,6.52895833]
[1748692563667,18.64964886,153.18,153.16,6.52895833]
[1748692565184,18.64964886,153.18,153.15,6.52954619]
[1748692565366,18.64964886,153.18,153.14,84.49568195]
[1748692565573,18.64964886,153.18,153.14,32.52989924]
[1748692566071,18.64964886,153.16,153.14,26.0]
[1748692567593,30.95543157,153.18,153.14,26.0]
[1748692567798,30.95543157,153.18,153.14,32.52990917]
[1748692570992,18.79181043,153.21,153.14,44.83569188]
[1748692571207,18.64964886,153.18,153.14,44.83569188]
[1748692571501,18.64964886,153.18,153.14,32.52990917]
[1748692571681,18.64964886,153.1,152.99,6.53637492]
[1748692572003,18.64964886,153.05,153.0,12.30578271]
[1748692572899,18.64964886,153.05,153.01,18.84095892]
[1748692573108,18.64964886,153.05,153.01,6.53517621]
[1748692574723,18.64964886,153.07,153.02,12.30578271]
[1748692575227,18.64964886,153.07,153.03,12.30578271]
[1748692575609,18.64964886,153.07,153.02,12.30578271]
[1748692576413,18.64964886,153.07,153.03,6.5346664]
[1748692577421,12.30578271,153.07,153.03,6.5346664]
[1748692580538,12.30578271,153.05,153.01,6.53514467]
[1748692581207,18.64964886,153.04,153.01,18.84092738]
[1748692581505,18.64964886,153.07,153.02,12.30578271]
[1748692581701,18.64964886,153.07,153.01,6.53514467]
[1748692581702,18.64964886,153.07,153.03,12.30578271]
[1748692581924,18.64964886,153.07,153.01,6.53514467]
[1748692581925,18.64964886,153.05,153.02,12.30578271]
[1748692582336,18.64964886,153.06,153.02,12.30578271]
[1748692582844,18.64964886,153.06,153.03,6.5346664]
[1748692585954,18.64964886,153.06,153.02,12.30578271]
[1748692586843,12.30578271,153.06,153.0,47.9871]
[1748692587052,25.18244103,153.08,153.0,60.29288271]
[1748692587053,12.30578271,153.05,153.0,60.29288271]
[1748692587222,12.30578271,153.05,153.01,6.53552055]
[1748692587422,18.64964886,153.06,153.01,18.84130326]
[1748692587651,18.64964886,153.06,153.02,12.30578271]
[1748692588949,18.64964886,153.06,153.03,6.5346664]
[1748692591366,18.64964886,153.06,153.02,6.53509345]
[1748692597303,18.64964886,153.06,153.02,12.30578271]
[1748692599304,18.64964886,153.07,153.02,12.30578271]
[1748692600805,18.64964886,153.07,153.03,6.5346664]
[1748692601508,12.30578271,153.07,153.03,6.5346664]
[1748692610016,18.64964886,153.06,153.03,6.5346664]
[1748692616817,18.64964886,153.11,153.05,12.30578271]
[1748692617007,18.64964886,153.11,153.04,39.76]
[1748692617008,30.95543157,153.11,153.07,12.30578271]
[1748692617820,30.95543157,153.11,153.07,6.53285579]
[1748692619292,18.64964886,153.09,153.07,6.53285579]
[1748692619729,30.95543157,153.11,153.07,6.53285579]
[1748692622121,18.64964886,153.11,153.08,12.30578271]
[1748692622319,18.64964886,153.11,153.08,52.06578271]
[1748692623225,18.64964886,153.12,153.08,52.06578271]
[1748692624015,18.64964886,153.12,153.09,6.53210529]
[1748692624209,30.95543157,153.12,153.09,6.53210529]
[1748692627309,18.64964886,153.12,153.09,6.53210529]
[1748692627513,37.48637946,153.12,153.07,6.5328527]
[1748692627722,12.30578271,153.11,153.07,46.2928527]
[1748692628606,18.83704248,153.11,153.07,46.2928527]
[1748692629235,30.95543157,153.12,153.07,58.59863541]
[1748692629425,30.95543157,153.12,153.07,18.83863541]
[1748692629744,18.64964886,153.09,153.04,12.30578271]
[1748692630028,30.95543157,153.09,153.06,39.76]
[1748692631014,18.64964886,153.09,153.06,39.76]
[1748692631713,18.64964886,153.09,153.05,46.29344028]
[1748692632421,18.64964886,153.09,153.05,46.27344028]
[1748692633634,18.64964886,153.09,153.05,58.57922299]
[1748692633929,12.30578271,153.11,153.06,12.30578271]
[1748692634119,18.64964886,153.1,153.06,12.30578271]
[1748692635133,18.64964886,153.1,153.07,6.53295877]
[1748692637220,18.64964886,153.1,153.07,12.30578271]
[1748692638407,18.64964886,153.1,153.08,6.532532]
[1748692639937,18.64964886,153.1,153.07,6.5328492]
[1748692640241,18.64964886,153.1,153.06,18.83902204]
[1748692640420,30.95543157,153.1,153.06,6.53323933]
[1748692643443,37.48713534,153.1,153.05,58.57950341]
[1748692643640,18.64964886,153.08,153.04,12.30578271]
[1748692643831,18.64964886,153.08,153.04,39.74]
[1748692645346,18.64964886,153.08,153.04,46.27399635]
[1748692647968,18.64964886,153.04,153.01,10.32]
[1748692648143,30.95543157,153.02,153.01,10.32]
[1748692648348,18.64964886,153.01,152.99,6.53625821]
[1748692648543,30.95543157,153.01,152.99,39.74]
[1748692648857,18.64964886,152.99,152.97,6.53683591]
[1748692649032,18.64964886,152.99,152.98,39.74]
[1748692649966,18.64964886,152.99,152.97,6.53683591]
[1748692650139,18.64964886,152.99,152.98,39.74]
[1748692651040,18.64964886,152.99,152.97,6.53683591]
[1748692651243,18.64964886,152.99,152.98,39.74]
[1748692651948,18.64964886,152.99,152.98,46.27680219]
[1748692652346,12.30578271,153.01,152.98,46.27680219]
[1748692652740,18.64964886,153.0,152.98,46.27680219]
[1748692654354,18.64964886,153.01,152.98,46.27680219]
[1748692654867,18.64964886,153.01,152.98,46.25680219]
[1748692656265,30.95543157,153.01,152.98,46.25680219]
[1748692657582,18.64964886,153.01,152.98,46.25680219]
[1748692658851,30.95543157,153.01,152.98,39.72]
[1748692666175,30.95543157,153.01,152.97,46.27706386]
[1748692667964,18.64964886,153.01,152.97,58.58284657]
[1748692671987,18.64964886,153.01,152.97,54.1710279]
[1748692679285,26.5436129,153.03,152.98,7.89396404]
[1748692681102,26.5436129,153.03,152.99,6.53637492]
[1748692682289,18.64964886,153.01,152.98,6.53677015]
[1748692682596,26.5436129,153.01,152.97,46.27711316]
[1748692683377,26.5436129,153.01,152.97,6.53711316]
[1748692683600,33.07918585,153.01,152.97,39.74]
[1748692684276,7.89396404,152.99,152.94,7.89396404]
[1748692684477,18.64964886,152.97,152.95,39.74]
[1748692684905,18.64964886,152.97,152.93,14.43273642]
[1748692685111,18.64964886,152.97,152.94,39.74]
[1748692685408,18.64964886,152.97,152.94,46.27819131]
[1748692685572,18.64964886,152.98,152.94,54.17215535]
[1748692686008,18.64964886,152.98,152.94,58.61679207]
[1748692689007,12.33860076,152.99,152.94,58.61679207]
[1748692689008,18.64964886,152.99,152.94,58.61679207]
[1748692689310,18.64964886,152.99,152.96,12.33860076]
[1748692689805,18.64964886,153.0,152.95,12.33860076]
[1748692690174,18.64964886,153.0,152.96,6.5376569]
[1748692691787,12.33860076,153.0,152.96,6.5376569]
[1748692697514,18.64964886,153.02,152.98,12.33860076]
[1748692697821,18.64964886,153.02,152.99,12.33860076]
[1748692698026,18.64964886,153.03,152.99,12.33860076]
[1748692698203,18.64964886,153.03,153.0,18.87454847]
[1748692698909,18.64964886,153.04,153.0,6.53594771]
[1748692699595,12.33860076,153.04,153.0,6.53594771]
[1748692700300,18.64964886,153.02,152.98,58.61503012]
[1748692707328,6.53396997,153.05,152.98,58.61503012]
[1748692707533,18.64964886,153.03,152.98,58.61503012]
[1748692708021,7.89201824,153.03,152.98,54.1684476]
[1748692708817,7.89201824,153.03,152.98,46.27642936]
[1748692709224,25.18391712,153.04,152.98,46.27642936]
[1748692709426,7.89201824,153.03,152.98,46.27642936]
[1748692709924,7.89201824,153.02,152.98,46.27642936]
[1748692710104,25.18391712,153.04,152.98,46.27642936]
[1748692710295,7.89201824,153.03,152.98,54.1684476]
[1748692710499,26.5416671,153.04,152.98,54.1684476]
[1748692711604,33.07595594,153.04,152.98,54.1684476]
[1748692714909,33.07592065,153.04,152.98,54.1684476]
[1748692715319,7.89201824,153.03,152.98,46.27642936]
[1748692715519,25.18390241,153.04,152.98,39.74]
[1748692715520,18.64964886,153.01,152.98,39.74]
[1748692716427,18.64964886,153.01,152.97,56.45704241]
[1748692719929,18.64964886,153.02,152.97,56.45704241]
[1748692720131,18.64964886,153.02,152.97,64.34906065]
[1748692720310,26.5416671,153.02,152.97,64.34906065]
[1748692722624,26.5416671,153.02,152.97,24.62906065]
[1748692724323,18.64964886,153.02,152.97,24.62906065]
[1748692724714,18.64964886,153.02,152.98,7.89201824]
[1748692725015,18.64964886,153.03,152.99,6.53637492]
[1748692727923,25.18433432,153.03,152.98,14.42862969]
[1748692728140,33.07635256,153.03,152.98,6.53661145]
[1748692730634,33.07635256,153.03,152.97,64.34911812]
[1748692731026,33.07635256,153.03,152.97,54.14911812]
[1748692732034,26.5416671,152.99,152.95,10.2]
[1748692732237,18.64964886,152.99,152.95,10.2]
[1748692732428,18.64964886,152.99,152.95,24.63002048]
[1748692733635,18.64964886,153.0,152.96,7.89201824]
[1748692735647,26.5416671,153.01,152.96,14.42924883]
[1748692735846,18.64964886,153.0,152.96,14.42924883]
[1748692736020,18.64964886,153.01,152.97,7.89201824]
[1748692736424,26.5416671,153.02,152.97,7.89201824]
[1748692737554,26.5416671,153.02,152.98,6.53680219]
[1748692739944,26.5416671,153.02,152.95,10.2]
[1748692739945,7.89201824,153.01,152.96,6.5376569]
[1748692740147,7.89201824,153.01,152.96,14.42967514]
[1748692743443,26.5416671,153.0,152.95,24.62995795]
[1748692743750,18.64964886,152.98,152.95,56.45793971]
[1748692744657,18.64964886,152.99,152.95,64.34995795]
[1748692745044,18.64964886,152.99,152.95,24.62995795]
[1748692745252,18.64964886,152.99,152.95,64.34995795]
[1748692745632,18.64964886,153.0,152.96,14.42932211]
[1748692746160,7.89201824,153.02,152.96,14.42932211]
[1748692746161,18.64964886,153.02,152.99,7.89201824]
[1748692746358,18.64964886,153.03,152.99,7.89201824]
[1748692746561,6.40626594,153.06,153.02,7.89201824]
[1748692746937,18.64964886,153.05,153.02,7.89201824]
[1748692748033,18.64964886,153.05,153.03,6.5346664]
[1748692749837,18.64964886,153.05,153.03,14.42668464]
[1748692750155,18.64964886,153.05,153.03,6.5346664]
[1748692751144,18.64964886,153.05,153.03,12.32518065]
[1748692752364,18.64964886,153.05,153.04,58.57942006]
[1748692752560,7.0091924,153.08,153.04,58.57942006]
[1748692752561,18.64964886,153.07,153.04,58.57942006]
[1748692752766,18.64964886,153.07,153.05,12.32518065]
[1748692754279,12.32518065,153.1,153.05,18.85878988]
[1748692754577,18.64964886,153.12,153.08,12.32518065]
[1748692754818,18.64964886,153.12,153.08,52.04518065]
[1748692755771,30.97482951,153.12,153.08,39.72]
[1748692755980,12.32518065,153.12,153.08,39.72]
[1748692756371,12.32518065,153.12,153.08,46.25248782]
[1748692757648,18.64964886,153.08,152.93,32.69263028]
[1748692757854,18.64964886,152.97,152.93,12.32518065]
[1748692758166,12.32518065,153.01,152.95,12.32518065]
[1748692758368,12.32518065,153.02,152.96,12.32518065]
[1748692758584,18.64964886,153.0,152.96,22.52518065]
[1748692758783,18.64964886,153.0,152.96,10.2]
[1748692760181,30.97482951,153.0,152.96,10.2]
[1748692760593,37.51093864,153.0,152.96,10.2]
[1748692761593,25.18575799,153.0,152.96,10.2]
[1748692762684,25.18575799,153.0,152.96,22.52518065]
[1748692763283,18.64964886,153.0,152.96,22.52518065]
[1748692763478,26.0,153.04,152.97,12.32518065]
[1748692763479,30.97482951,153.03,152.97,12.32518065]
[1748692764305,37.50957224,153.03,152.97,18.86229397]
[1748692766908,37.50957224,153.03,152.98,12.32518065]
[1748692768593,30.97482951,153.03,152.99,12.32518065]
[1748692768786,30.97482951,153.03,153.0,12.32518065]
[1748692768787,18.64964886,153.03,153.0,12.32518065]
[1748692769101,18.64964886,153.03,152.97,46.39711332]
[1748692769102,18.64964886,153.03,152.99,12.32518065]
[1748692769309,18.64964886,153.03,152.96,98.0]
[1748692769310,18.64964886,152.99,152.92,6.53936698]
[1748692769499,1.5895,153.02,152.93,12.32518065]
[1748692769500,18.64964886,152.97,152.93,12.32518065]
[1748692770215,1.5895,153.02,152.92,6.53936698]
[1748692770216,30.97482951,152.95,152.92,6.53936698]
[1748692770507,18.64964886,152.93,152.91,0.21604709]
[1748692770803,18.64964886,152.94,152.91,0.21604709]
[1748692773209,18.64964886,153.0,152.92,12.32518065]
[1748692773505,12.32518065,152.98,152.93,52.50518065]
[1748692773712,18.64964886,152.96,152.94,10.3]
[1748692779618,18.64964886,152.96,152.94,16.83845291]
[1748692779822,12.32518065,152.98,152.94,16.83845291]
[1748692780030,18.64964886,152.96,152.94,16.83845291]
[1748692782142,12.32518065,152.98,152.94,16.83845291]
[1748692784425,18.64964886,152.97,152.94,10.3]
[1748692784630,18.64964886,152.97,152.94,16.83849926]
[1748692785024,12.32518065,152.99,152.94,16.83849926]
[1748692786532,12.32518065,152.99,152.94,29.16367991]
[1748692789537,37.51092293,153.0,152.94,29.16367991]
[1748692790127,12.32518065,152.99,152.94,29.16367991]
[1748692790640,37.51092293,153.0,152.94,29.16367991]
[1748692791414,12.32518065,152.99,152.94,29.16367991]
[1748692793448,30.97482951,153.0,152.94,29.16367991]